Cogmind - Beta 12 @@@ ROGUE MODE // 2023.09.16 @ 00:50:07 Player: monistgf Result: Destroyed by Y-54 Guardian with Flak Gun Performance ------------- Evolutions (4) 2000 Regions Visited (12) 2400 Robots Destroyed (136) 680 Value Destroyed (5280) 5280 Prototype IDs (3) 60 Alien Tech Used (0) 0 Bonus (1537) 1537 TOTAL SCORE: 11957 Bonus ------- High Alert Combat Kills 77 Follower Combat Kills 1291 Network Hubs Disabled 200 Friendly Fire -31 Cogmind --------- Core Integrity 0/850 Matter 280/300 Energy 98/100 System Corruption 11% Temperature Cool (0) Movement Core (50) Location -6/Hub_04(d) Parts ------- > --- POWER (1) -------- (None) > --- PROPULSION (4) --- (None) > --- UTILITY (7) ------ (None) > --- WEAPON (3) ------- (None) > --- INVENTORY (5) ---- Matter Compressor (250) Hardened Heavy Armor Plating Improved Light Armor Plating Missile Launcher Peak State ------------ > --- POWER ------------ Quantum Reactor > --- PROPULSION ------- Flexi-carbon Leg Flexi-carbon Leg Flexi-carbon Leg Flexi-carbon Leg > --- UTILITY ---------- Improved Cryofiber Web Advanced Heat Sink High-capacity Storage Unit Advanced Sensor Array Advanced Targeting Computer Target Analyzer Centrium Medium Armor Plating > --- WEAPON ----------- Advanced Variable Charge Gun Heavy Plasma Cannon Heavy Plasma Cannon > --- INVENTORY -------- Fission Core Carbon-fiber Leg Carbon-fiber Leg Carbon-fiber Leg Advanced Heat Sink High-capacity Storage Unit Matter Compressor Improved Signal Interpreter Advanced Terrain Scanner Hardened Light Armor Plating Hardened Light Armor Plating Hardened Heavy Armor Plating Improved Light Armor Plating Centrium Medium Armor Plating Heavy Laser Heavy Plasma Cannon Missile Launcher Heavy Rocket Launcher Ripper [Rating: 85] Favorites ----------- Power Improved Deuterium Engine Engine Improved Deuterium Engine Power Core Light Nuclear Core Reactor Quantum Reactor Propulsion Armored Treads Treads Armored Treads Leg Flexi-carbon Leg Wheel Armored Wheel Utility High-capacity Storage Unit Device Cooling System Storage High-capacity Storage Unit Processor Advanced Targeting Computer Protection Hardened Medium Armor Plating Weapon Beam Cannon Energy Gun Gatling Laser Energy Cannon Beam Cannon Ballistic Gun Heavy Assault Rifle Ballistic Cannon Gauss Cannon Launcher Missile Launcher Slashing Weapon Ripper Build | -11 -10 -9 -9 -8 -7 -7 -7 -6 -6 -6 -6 -6 ------- Run | Jun Mat Mat Min Mat Fac Low Low Fac Ext Cet Arc Hub Slots Evolved 8 | . . 2 . 2 2 . . 2 . . . . Power . | . . . . . . . . . . . . . Propulsion 2 | . . 1 . 1 . . . . . . . . Utility 5 | . . . . 1 2 . . 2 . . . . Weapon 1 | . . 1 . . . . . . . . . . Parts Attached 166 | 6 7 21 . 30 10 2 . 13 27 40 5 5 Power 16 | 1 1 2 . 3 2 . . 1 3 3 . . Engine 7 | 1 . 1 . . 2 . . 1 1 1 . . Core 8 | . 1 1 . 3 . . . . 2 1 . . Reactor 1 | . . . . . . . . . . 1 . . Propulsion 56 | 2 1 6 . 11 1 . . 2 10 19 2 2 Treads 13 | . . . . 7 1 . . 1 3 . . 1 Leg 42 | 2 1 5 . 4 . . . 1 7 19 2 1 Wheel 1 | . . 1 . . . . . . . . . . Hover . | . . . . . . . . . . . . . Flight . | . . . . . . . . . . . . . Utility 46 | 1 2 4 . 8 3 . . 8 8 10 1 1 Device 24 | . . . . 3 3 . . 6 4 7 1 . Storage 6 | 1 1 3 . 1 . . . . . . . . Processor 5 | . 1 1 . . . . . 1 1 1 . . Hackware . | . . . . . . . . . . . . . Protection 11 | . . . . 4 . . . 1 3 2 . 1 Artifact . | . . . . . . . . . . . . . Weapon 48 | 2 3 9 . 8 4 2 . 2 6 8 2 2 Energy Gun 11 | 1 1 . . . 1 . . 2 1 3 2 . Energy Cannon 14 | . . . . 6 1 1 . . 3 3 . . Ballistic Gun 13 | 1 2 7 . 2 . . . . 1 . . . Ballistic Cannon 1 | . . . . . 1 . . . . . . . Launcher 6 | . . 2 . . 1 1 . . 1 1 . . Special Weapon . | . . . . . . . . . . . . . Impact Weapon . | . . . . . . . . . . . . . Slashing Weapon 3 | . . . . . . . . . . 1 . 2 Piercing Weapon . | . . . . . . . . . . . . . Special Melee Weapon . | . . . . . . . . . . . . . Unidentified Prototypes 3 | . . . . . . . . 1 . 2 . . Parts Lost 49 | . 1 3 . 3 2 . . 4 13 14 3 6 Power 6 | . . 1 . . 1 . . . 2 2 . . Propulsion 20 | . 1 1 . 1 1 . . 2 4 5 2 3 Utility 9 | . . . . 1 . . . . 4 4 . . Weapon 14 | . . 1 . 1 . . . 2 3 3 1 3 Highest Loss Streak 9 | . 1 1 . 1 1 . . 2 8 9 1 6 To Critical Strikes 1 | . . . . . . . . . . . 1 . Average Slot Usage (%) 95 | . 97 98 100 99 99 100 100 92 87 99 99 90 Engine 3 | . 3 3 . . 6 7 7 6 . 1 6 5 Core 3 | . 10 7 11 9 . . . . 2 2 . . Treads 15 | . . . . 25 30 30 30 24 9 . . . Leg 13 | . 27 29 33 9 . . . 1 14 25 25 23 Device 15 | . . . . 9 23 23 23 20 18 16 20 18 Storage 7 | . 14 11 11 9 7 7 7 6 6 6 6 5 Processor 6 | . 12 11 11 . . . . 6 9 16 13 12 Protection 5 | . . . . 9 7 7 7 6 6 6 6 4 Energy Gun 5 | . 1 . . . 3 7 7 12 3 6 18 12 Energy Cannon 10 | . . . . 21 14 14 15 7 10 10 1 . Ballistic Gun 5 | . 26 31 33 5 3 . . . 2 . . . Naked Turns 12 | . . . . . . . . . . . . 12 Heaviest Build 101 | 14 21 34 34 68 79 76 76 97 91 101 84 78 Greatest Support 83 | 20 20 30 30 80 80 80 80 83 70 80 80 70 Greatest Overweight (x) 2 | 1 2 1 1 1 . . . 1 1 1 1 1 Average Overweight (x) . | . . . 1 . . . . 1 1 . 1 . Largest Inventory Capacity 20 | 8 10 15 15 20 20 20 20 20 20 20 20 20 Average Capacity 18 | 7 8 10 15 17 20 20 20 20 20 20 20 18 Most Carried 20 | 2 9 15 15 20 20 20 20 20 20 20 20 20 Average Carried 17 | . 7 10 15 17 19 19 20 18 18 19 19 18 Final Capacity 20 | 8 10 15 15 20 20 20 20 20 20 20 20 5 Final Carried 20 | 2 9 15 15 20 19 20 20 20 20 20 20 5 Class Distribution -------------------- 26% | Scavenger-Gunner 18% | Scavenger-Tank 17% | Tank 14% | Scavenger-Mutant 9% | Mutant 7% | Scavenger-Skirmisher 3% | Commander-Gunner 3% | Gunner Dominant Class ---------------- Mutant | -10/Materials Scavenger-Gunner | -9/Materials Scavenger-Gunner | -9/Mines Tank | -8/Materials Tank | -7/Factory Scavenger-Tank | -7/Lower Caves Scavenger-Tank | -7/Lower Caves Scavenger-Gunner | -6/Factory Scavenger-Mutant | -6/Extension Scavenger-Gunner | -6/Cetus Scavenger-Skirmisher | -6/Archives Scavenger-Mutant | -6/Hub_04(d) Resources | -11 -10 -9 -9 -8 -7 -7 -7 -6 -6 -6 -6 -6 ----------- Run | Jun Mat Mat Min Mat Fac Low Low Fac Ext Cet Arc Hub Matter Collected 3053 | 243 314 531 . 477 234 92 . 347 388 387 40 . Remotely . | . . . . . . . . . . . . . Salvage Created 5666 | . 364 676 . 1527 718 180 . 676 123 1043 331 28 Parts 243 | . 19 49 . 59 32 12 . 13 7 44 6 2 Haulers Intercepted 4 | . 1 1 . 2 . . . . . . . . Recyclers Shooed 4 | . . 1 . . . . . 2 1 . . . Parts Field Recycled . | . . . . . . . . . . . . . Retrieved Matter . | . . . . . . . . . . . . . Parts Self-Destructed 10 | . . . . . . 10 . . . . . . Prevented . | . . . . . . . . . . . . . Kills | -11 -10 -9 -9 -8 -7 -7 -7 -6 -6 -6 -6 -6 ------- Run | Jun Mat Mat Min Mat Fac Low Low Fac Ext Cet Arc Hub Combat Hostiles Destroyed 118 | . 9 22 . 25 14 5 . 13 4 22 4 . Guns 47 | . 9 17 . 4 4 . . 6 1 5 1 . Cannons 43 | . . . . 19 5 2 . 3 . 13 1 . AOE 18 | . . 5 . . 3 3 . . 3 4 . . Classes Destroyed 15 | . 3 2 . 5 1 . . . 3 1 . . Worker 6 | . . . . 1 2 . . 1 1 . . 1 Builder 3 | . . . . . . . . . 3 . . . Tunneler 1 | . . . . . . . . . 1 . . . Hauler 4 | . 1 1 . 2 . . . . . . . . Recycler 2 | . . . . 1 1 . . . . . . . Watcher 2 | . . 1 . . 1 . . . . . . . Swarmer 28 | . 3 13 . . 4 . . . . 8 . . Grunt 52 | . 6 4 . 17 2 3 . 8 . 12 . . Brawler 1 | . . . . . . . . . . 1 . . Duelist 2 | . . . . 1 . 1 . . . . . . Sentry 22 | . . 5 . 5 4 . . 1 3 . 4 . Hunter 5 | . . . . 1 1 1 . 1 . 1 . . Programmer 6 | . . . . . 3 . . 3 . . . . Heavy 1 | . . . . 1 . . . . . . . . Behemoth 1 | . . . . . . . . . 1 . . . Best Kill Streak 8 | . 3 5 . 5 6 4 . 4 8 7 1 1 Combat Bots Only 7 | . 3 5 . 4 4 4 . 4 3 7 1 . Max Kills in Single Turn 4 | . 2 4 . 2 3 2 . 2 3 3 1 1 Gunslinging 1 | . 1 . . . . . . . . . . . Exploded 3 | . . 3 . . 2 2 . . 1 3 . . Melee . | . . . . . . . . . . . . . Uniques/NPCs Destroyed . | . . . . . . . . . . . . . Combat | -11 -10 -9 -9 -8 -7 -7 -7 -6 -6 -6 -6 -6 -------- Run | Jun Mat Mat Min Mat Fac Low Low Fac Ext Cet Arc Hub Damage Taken 12265 | . 421 664 98 1887 879 95 . 1119 2278 3029 706 1089 Core 1282 | . 19 33 26 246 69 39 . 86 184 206 73 301 Absorbed by Shields 100 | . . . . . 35 . . . 65 . . . Regen/Repaired (Parts) 388 | . . . . 388 . . . . . . . . Core Remaining (%) 83 | 100 92 . 85 55 . . 84 . . . . . Volleys Fired 303 | . 33 36 . 69 30 6 . 38 28 45 17 1 Largest 3 | . 2 3 . 3 3 3 . 3 3 3 3 2 Hottest 270 | . 46 69 . 180 200 200 . 210 210 270 239 149 Shots Fired 761 | . 66 99 . 207 78 13 . 114 37 98 47 2 Gun 413 | . 66 97 . 45 24 4 . 73 27 36 39 2 Cannon 333 | . . . . 162 52 7 . 41 5 58 8 . Launcher 15 | . . 2 . . 2 2 . . 5 4 . . Special . | . . . . . . . . . . . . . Kinetic 242 | . 66 97 . 45 19 . . . 15 . . . Thermal 504 | . . . . 162 57 11 . 114 17 94 47 2 Explosive 15 | . . 2 . . 2 2 . . 5 4 . . Electromagnetic . | . . . . . . . . . . . . . Robot Hit Streak 28 | . 10 16 . 17 15 6 . 19 28 15 17 . Robot Miss Streak 4 | . 4 3 . 4 3 2 . 4 2 4 1 . Penetration Max 1 | . . . . 1 1 . . . . . . . Secondary Targets 6 | . 2 4 . . . . . . . . . . Max Gunslinging Chain 1 | . 1 1 . . . . . . . . . . Shots Hit Robots 545 | . 41 66 . 141 54 12 . 94 30 65 40 2 Core Hits 283 | . 15 32 . 60 35 12 . 44 36 35 11 3 Critical Kills 3 | . . . . 1 2 . . . . . . . Critical Parts Destroyed 1 | . . . . . 1 . . . . . . . Critical Strikes 11 | . . . . 1 3 . . 1 1 . 5 . Burn 7 | . . . . . . . . 1 1 . 5 . Meltdown 2 | . . . . 1 1 . . . . . . . Destroy 2 | . . . . . 2 . . . . . . . Melee Attacks 5 | . . . . . . . . . . 2 . 3 Impact . | . . . . . . . . . . . . . Slashing 5 | . . . . . . . . . . 2 . 3 Piercing . | . . . . . . . . . . . . . Sneak Attacks . | . . . . . . . . . . . . . Combat Hostiles . | . . . . . . . . . . . . . Follow-up Attacks . | . . . . . . . . . . . . . Damage Inflicted 13903 | . 610 1302 . 2687 1622 434 . 2021 1486 2526 1031 184 Guns 5949 | . 605 961 . 470 399 67 . 1362 528 778 779 . Cannons 5417 | . . . . 2207 782 120 . 653 131 1272 252 . Explosions 2313 | . . 332 . . 435 219 . . 822 392 . 113 Melee 155 | . . . . . . . . . . 84 . 71 Ramming 69 | . 5 9 . 10 6 28 . 6 5 . . . Kinetic 2577 | . 605 961 . 470 258 . . . 283 . . . Thermal 8789 | . . . . 2207 923 187 . 2015 376 2050 1031 . Explosive 2200 | . . 332 . . 435 219 . . 822 392 . . Electromagnetic 113 | . . . . . . . . . . . . 113 Impact . | . . . . . . . . . . . . . Slashing 155 | . . . . . . . . . . 84 . 71 Piercing . | . . . . . . . . . . . . . Highest Corruption 11 | . . 2 2 . 5 5 5 2 2 . . 11 Average Corruption 3 | . . 2 2 . 2 5 5 1 1 . . 4 Corruption Purged 2 | . . . . . . . . . 2 . . . Corruption Blocked . | . . . . . . . . . . . . . Effects 55 | . . 3 . . 17 20 6 2 6 . . 1 Message Errors 13 | . . . . . 4 5 2 1 . . . 1 Matter Fused 15 | . . 1 . . 5 6 . . 3 . . . Heat Flow Errors 9 | . . 1 . . 2 3 2 . 1 . . . Energy Discharges 7 | . . 1 . . 2 1 . 1 2 . . . Data Loss (minor) 5 | . . . . . . 3 2 . . . . . Data Loss (major) 4 | . . . . . 2 2 . . . . . . Alerts 1 | . . . . . 1 . . . . . . . Weapon Failures 1 | . . . . . 1 . . . . . . . Overload Shots . | . . . . . . . . . . . . . Overflow Damage 180 | . . 30 . 7 8 25 . . 27 50 27 6 Projectiles 54 | . . . . 7 8 . . . . 12 27 . Explosions 101 | . . 30 . . . . . . 27 38 . 6 Melee 25 | . . . . . . 25 . . . . . . Knockbacks . | . . . . . . . . . . . . . Impact . | . . . . . . . . . . . . . Kinetic . | . . . . . . . . . . . . . Secondary . | . . . . . . . . . . . . . Self-Inflicted Damage 106 | . . . . . . . . . . . . 106 Shots 1 | . . . . . . . . . . . . 1 Rammed 8 | . . . . 2 1 1 . 2 2 . . . Targets Rammed 16 | . 2 4 . 4 1 1 . 2 2 . . . Kicked 8 | . 2 4 . 2 . . . . . . . . Crushed . | . . . . . . . . . . . . . Highest Temperature 405 | . 66 88 . 310 96 208 198 268 405 336 201 . Average Temperature 95 | . 20 34 . 110 31 52 96 112 199 145 58 . Received Heat Transfer 3253 | . 168 213 . 702 175 36 . 303 432 1065 144 15 Effects 4 | . . . . 3 . . . . . 1 . . Energy Bleed 2 | . . . . 1 . . . . . 1 . . Interference 2 | . . . . 2 . . . . . . . . Siege Activations . | . . . . . . . . . . . . . Robots Corrupted . | . . . . . . . . . . . . . Combat Hostiles . | . . . . . . . . . . . . . Parts Fried . | . . . . . . . . . . . . . Impact Corruptions 6 | . . . . . . 6 . . . . . . Robots Melted 10 | . . . . 2 2 . . 4 . . 2 . Combat Hostiles 10 | . . . . 2 2 . . 4 . . 2 . Parts Melted 62 | . . . . 17 8 1 . 16 . 7 13 . Heat Transferred 16832 | . . . . 4588 1694 372 . 4356 795 3036 1991 . Parts Sabotaged . | . . . . . . . . . . . . . Parts Stolen . | . . . . . . . . . . . . . Parts Stripped . | . . . . . . . . . . . . . Power Chain Reactions . | . . . . . . . . . . . . . Missiles Intercepted . | . . . . . . . . . . . . . Alert | -11 -10 -9 -9 -8 -7 -7 -7 -6 -6 -6 -6 -6 ------- Run | Jun Mat Mat Min Mat Fac Low Low Fac Ext Cet Arc Hub Peak Influence 494 | . 218 494 192 314 439 . . 295 345 306 238 132 Initial 192 | . . 45 192 74 127 . . . 85 192 112 13 Average 201 | . 115 282 192 182 297 . . 106 206 232 158 72 Maximum Alert Level 2 | . 1 2 . 1 2 . . 1 1 1 1 . Low Security (%) 44 | 100 76 28 100 49 12 . . 76 41 25 60 100 Level 1 52 | . 23 47 . 50 77 . . 23 58 74 39 . Level 2 3 | . . 23 . . 10 . . . . . . . Level 3 . | . . . . . . . . . . . . . Level 4 . | . . . . . . . . . . . . . Level 5 . | . . . . . . . . . . . . . High Security . | . . . . . . . . . . . . . Max Security . | . . . . . . . . . . . . . Squads Dispatched 13 | . 2 . . 3 3 . . 3 1 . . 1 Investigation 4 | . 1 . . 1 . . . . 1 . . 1 Extermination 4 | . . . . . 1 . . 3 . . . . Reinforcement 5 | . 1 . . 2 2 . . . . . . . Assault . | . . . . . . . . . . . . . Garrison . | . . . . . . . . . . . . . Intercept . | . . . . . . . . . . . . . Searches Triggered . | . . . . . . . . . . . . . Construction Impeded 1 | . . . . . 1 . . . . . . . Haulers Reinforced . | . . . . . . . . . . . . . Active Scanning Responses . | . . . . . . . . . . . . . Cargo Convoy Interrupts . | . . . . . . . . . . . . . Stealth | -11 -10 -9 -9 -8 -7 -7 -7 -6 -6 -6 -6 -6 --------- Run | Jun Mat Mat Min Mat Fac Low Low Fac Ext Cet Arc Hub Distress Signals 13 | . 1 4 . 3 1 . . . 2 2 . . Communications Jammed . | . . . . . . . . . . . . . Distress Signals . | . . . . . . . . . . . . . Times Spotted 217 | . 12 27 3 41 26 5 . 18 29 40 5 11 Peak Tracking Total 13 | . 4 6 3 5 4 4 . 5 7 8 1 13 Tactical Retreats 9 | . 1 1 . 2 1 . . 1 2 1 . . Traps | -11 -10 -9 -9 -8 -7 -7 -7 -6 -6 -6 -6 -6 ------- Run | Jun Mat Mat Min Mat Fac Low Low Fac Ext Cet Arc Hub Traps Triggered 10 | . 1 1 . . 5 . . 1 1 . . 1 Indirectly . | . . . . . . . . . . . . . Trap Hack Attempts . | . . . . . . . . . . . . . Triggered . | . . . . . . . . . . . . . Disarmed . | . . . . . . . . . . . . . Reprogrammed . | . . . . . . . . . . . . . Reused . | . . . . . . . . . . . . . Traps Extracted . | . . . . . . . . . . . . . Installed . | . . . . . . . . . . . . . Triggered . | . . . . . . . . . . . . . Machines | -11 -10 -9 -9 -8 -7 -7 -7 -6 -6 -6 -6 -6 ---------- Run | Jun Mat Mat Min Mat Fac Low Low Fac Ext Cet Arc Hub Machines Disabled 17 | . 3 . . 1 . . . . 3 7 1 2 Max in Single Turn 1 | . 1 . . 1 . . . . 1 1 1 1 Network Hub 1 | . . . . . . . . . . . . 1 Energy Cycler 1 | . . . . . . . . . 1 . . . Machines Repaired . | . . . . . . . . . . . . . Machines Sabotaged . | . . . . . . . . . . . . . Overloaded Fab Kills . | . . . . . . . . . . . . . Hacking | -11 -10 -9 -9 -8 -7 -7 -7 -6 -6 -6 -6 -6 --------- Run | Jun Mat Mat Min Mat Fac Low Low Fac Ext Cet Arc Hub Machines Accessed 27 | . 1 1 1 5 1 2 . 2 10 3 1 . Terminals 24 | . 1 1 1 4 1 1 . 2 10 3 . . Fabricators . | . . . . . . . . . . . . . Repair Stations 1 | . . . . 1 . . . . . . . . Recycling Units . | . . . . . . . . . . . . . Scanalyzers . | . . . . . . . . . . . . . Garrison Access . | . . . . . . . . . . . . . Total Hacks 82 | . 3 2 3 16 2 2 . 4 17 8 25 . Successful 52 | . . 1 . 10 . 2 . 1 9 4 25 . Failed 30 | . 3 1 3 6 2 . . 3 8 4 . . Catastrophic 9 | . . 1 2 1 1 . . 1 1 2 . . Database Lockouts . | . . . . . . . . . . . . . Manual 20 | . 3 2 3 5 . . . . 4 2 1 . Terminals 51 | . 3 2 3 11 2 1 . 4 17 8 . . Fabricators . | . . . . . . . . . . . . . Repair Stations 5 | . . . . 5 . . . . . . . . Recycling Units . | . . . . . . . . . . . . . Scanalyzers . | . . . . . . . . . . . . . Garrison Access . | . . . . . . . . . . . . . Terminal Hacks 45 | . . . . 4 . 2 . 1 9 4 25 . Record 29 | . . . . . . 1 . . . 3 25 . Open Door 12 | . . . . . . 1 . 1 9 1 . . Branch Access Points 2 | . . . . 2 . . . . . . . . Alert Level 1 | . . . . 1 . . . . . . . . Unreport Threat 1 | . . . . 1 . . . . . . . . Fabricator Hacks . | . . . . . . . . . . . . . Repair Station Hacks 5 | . . . . 5 . . . . . . . . Scan Component 3 | . . . . 3 . . . . . . . . Repair 2 | . . . . 2 . . . . . . . . Recycling Unit Hacks . | . . . . . . . . . . . . . Scanalyzer . | . . . . . . . . . . . . . Garrison Access Hacks . | . . . . . . . . . . . . . Unauthorized Hacks 2 | . . 1 . 1 . . . . . . . . Terminals 2 | . . 1 . 1 . . . . . . . . Botnet 2 | . . 1 . 1 . . . . . . . . Fabricators . | . . . . . . . . . . . . . Repair Stations . | . . . . . . . . . . . . . Recycling Units . | . . . . . . . . . . . . . Scanalyzers . | . . . . . . . . . . . . . Garrison Access . | . . . . . . . . . . . . . Data Cores Recovered . | . . . . . . . . . . . . . Used . | . . . . . . . . . . . . . Hacking Detections 21 | . 1 1 1 5 1 1 . 1 6 4 . . Full Trace Events 3 | . . . 1 1 . . . . 1 . . . Feedback Events . | . . . . . . . . . . . . . Feedback Blocked . | . . . . . . . . . . . . . Robot Schematics Acquired . | . . . . . . . . . . . . . Robots Built . | . . . . . . . . . . . . . Authchips . | . . . . . . . . . . . . . Time . | . . . . . . . . . . . . . Total Robot Build Rating . | . . . . . . . . . . . . . Part Schematics Acquired . | . . . . . . . . . . . . . Parts Built . | . . . . . . . . . . . . . Authchips . | . . . . . . . . . . . . . Time . | . . . . . . . . . . . . . Total Part Build Rating . | . . . . . . . . . . . . . Parts Repaired 2 | . . . . 2 . . . . . . . . Time 76 | . . . . 76 . . . . . . . . Parts Recycled . | . . . . . . . . . . . . . Recycled Matter . | . . . . . . . . . . . . . Retrieved Matter . | . . . . . . . . . . . . . Retrieved Components . | . . . . . . . . . . . . . Parts Scanalyzed . | . . . . . . . . . . . . . Part Schematics Acquired . | . . . . . . . . . . . . . Parts Damaged . | . . . . . . . . . . . . . Bothacking | -11 -10 -9 -9 -8 -7 -7 -7 -6 -6 -6 -6 -6 ------------ Run | Jun Mat Mat Min Mat Fac Low Low Fac Ext Cet Arc Hub Used RIF Installer . | . . . . . . . . . . . . . Robots Hacked . | . . . . . . . . . . . . . Non-combat . | . . . . . . . . . . . . . Combat . | . . . . . . . . . . . . . Robot Hacks Applied . | . . . . . . . . . . . . . Relay Couplers Released . | . . . . . . . . . . . . . Fabnet Peak Effective % . | . . . . . . . . . . . . . Robots Rewired 10 | . . . . . . . . . 10 . . . Allies Hacked . | . . . . . . . . . . . . . Hacks Repelled . | . . . . . . . . . . . . . Allies | -11 -10 -9 -9 -8 -7 -7 -7 -6 -6 -6 -6 -6 -------- Run | Jun Mat Mat Min Mat Fac Low Low Fac Ext Cet Arc Hub Total Allies 35 | . . . . . 15 . . . 20 . . . Largest Group 16 | . . . . . 9 1 . . 16 16 . . Highest-Rated Group 583 | . . . . . 211 31 . . 583 583 . . Highest-Rated Ally 159 | . . . . . 31 31 . . 159 143 . . Total Orders . | . . . . . . . . . . . . . Ally Attacks 228 | . . . . . 31 1 . . 109 87 . . Total Damage 5264 | . . . . . 478 21 . . 2567 2198 . . Kills 33 | . . . . . 3 . . . 21 9 . . Allies Corrupted . | . . . . . . . . . . . . . Allies Melted 2 | . . . . . . . . . 1 1 . . Intel | -11 -10 -9 -9 -8 -7 -7 -7 -6 -6 -6 -6 -6 ------- Run | Jun Mat Mat Min Mat Fac Low Low Fac Ext Cet Arc Hub Robot Analysis Total . | . . . . . . . . . . . . . Derelict Logs Recovered 1 | . . . . . . . 1 . . . . . Drone Launches . | . . . . . . . . . . . . . Drone Recoveries . | . . . . . . . . . . . . . Exploration | -11 -10 -9 -9 -8 -7 -7 -7 -6 -6 -6 -6 -6 ------------- Run | Jun Mat Mat Min Mat Fac Low Low Fac Ext Cet Arc Hub Turns Passed 9944 | 62 451 733 57 1322 1117 954 210 955 2320 1099 516 148 Spaces Moved 4287 | 44 203 376 31 530 516 544 123 311 846 458 213 92 Core 29 | 5 . . . . . . . . . . . 24 Treads 2271 | . . . . 346 516 544 123 311 431 . . . Legs 1987 | 39 203 376 31 184 . . . . 415 458 213 68 Wheels . | . . . . . . . . . . . . . Hover . | . . . . . . . . . . . . . Flight . | . . . . . . . . . . . . . Fastest Speed 50 | 50 120 120 190 120 170 170 170 246 190 120 190 50 Average Speed 181 | 116 148 142 190 155 170 170 170 248 216 185 190 134 Slowest Speed 260 | 190 260 190 190 250 170 170 170 250 246 190 190 190 Overloaded Moves . | . . . . . . . . . . . . . Propulsion Burnouts . | . . . . . . . . . . . . . Robots Hopped . | . . . . . . . . . . . . . Cave-ins Triggered . | . . . . . . . . . . . . . Exploration Rate (%) 43 | 3 41 37 17 50 17 82 23 8 86 90 98 16 Regions Visited 12 Branch Regions 7 Pre-discovered Areas 1 | . . . . . . . 1 . . . . . Known Exits Taken 2 | . . . . . . . . . . 1 1 . Unknown Exits Taken 10 | 1 1 1 1 1 1 1 1 1 1 . . . Scrap Searched 5 | . . . . . . 4 1 . . . . . Spaces Dug 2 | . . . . . 2 . . . . . . . Terrain Destroyed 269 | . . 17 . . 14 10 . . 73 . 1 154 Melee . | . . . . . . . . . . . . . Projectile 4 | . . . . . 2 . . . 1 . 1 . AOE 265 | . . 17 . . 12 10 . . 72 . . 154 Terrain Rammed . | . . . . . . . . . . . . . Walls Destroyed . | . . . . . . . . . . . . . Machines Disabled . | . . . . . . . . . . . . . Actions | -11 -10 -9 -9 -8 -7 -7 -7 -6 -6 -6 -6 -6 --------- Run | Jun Mat Mat Min Mat Fac Low Low Fac Ext Cet Arc Hub Total 5924 | 52 297 501 30 884 707 564 124 421 1313 631 289 111 Wait 716 | . 41 34 . 197 135 2 2 30 193 26 50 6 Move 4275 | 43 202 375 30 529 515 543 122 310 845 457 212 92 Hop . | . . . . . . . . . . . . . Pick Up 136 | 3 7 17 . 24 9 4 . 14 25 28 4 1 Fast Attach 36 | 5 3 1 . 9 . . . 3 8 7 . . Attach 57 | 1 . 6 . 4 4 . . 6 14 14 4 4 Detach 12 | . 1 1 . 3 . . . 1 4 1 . 1 Swap 73 | . 4 14 . 17 6 2 . 4 5 19 1 1 Drop 123 | . 4 13 . 28 7 4 . 11 21 32 1 2 Fire 303 | . 33 36 . 69 30 6 . 38 28 45 17 1 Melee 5 | . . . . . . . . . . 2 . 3 Ram . | . . . . . . . . . . . . . Kick 8 | . 2 4 . 2 . . . . . . . . Crush 8 | . . . . 2 1 1 . 2 2 . . . Escape Stasis 7 | . . . . . . . . 2 5 . . . Rewire 165 | . . . . . . 2 . . 163 . . . Trap . | . . . . . . . . . . . . . Miscellaneous . | . . . . . . . . . . . . . Route ------- -11/Junkyard -10/Materials (discovered 2 exits: *Mat / [*Min]) -9/Materials -9/Mines -8/Materials -7/Factory (discovered 2 exits: [*Sto] / *Low) -7/Lower Caves -7/Lower Caves -6/Factory -6/Extension (discovered 3 exits: *Fac x2 / *Cet) -6/Cetus (discovered 2 exits: *Fac / *Arc) -6/Archives (discovered 3 exits: *Fac / *Hub x2) -6/Hub_04(d) History --------- Turn | Location | Event 5 | -11/Junkyard | Discovered new exit (range 14) 63 | -11/Junkyard | Entered Materials 279 | -10/Materials | Discovered new exit (range 5) 327 | -10/Materials | Build established: Mutant 436 | -10/Materials | Discovered new exit (range 16) 514 | -10/Materials | Entered another Materials area 514 | -9/Materials | Evolved 2 slots: Propulsion x1, Weapon x1 1065 | -9/Materials | Discovered new exit (range 16) 1247 | -9/Materials | Entered Mines 1282 | -9/Mines | Discovered new exit (range 13) 1292 | -9/Mines | Build established: Scavenger-Gunner 1304 | -9/Mines | Entered Materials 1304 | -8/Materials | Evolved 2 slots: Propulsion x1, Utility x1 1602 | -8/Materials | Build established: Scavenger-Tank 1966 | -8/Materials | Build established: Tank 2221 | -8/Materials | Repaired Arm. Treads 2282 | -8/Materials | Repaired Arm. Treads 2560 | -8/Materials | Discovered new exit (range 10) 2626 | -8/Materials | Entered Factory 2626 | -7/Factory | Evolved 2 slots: Utility x2 3009 | -7/Factory | Discovered new exit (range 16) 3323 | -7/Factory | Allied Derelicts emerged from ambush trap array 3594 | -7/Factory | Discovered new exit (range 9) 3743 | -7/Factory | Entered Lower Caves 3743 | -7/Lower Caves | Accompanied by 1 ally 3779 | -7/Lower Caves | Build established: Scavenger-Tank 4661 | -7/Lower Caves | Discovered new exit (range 11) 4697 | -7/Lower Caves | Entered another Lower Caves area 4801 | -7/Lower Caves | Learned location of Extension (-6) 4888 | -7/Lower Caves | Discovered new exit (range 12) 4907 | -7/Lower Caves | Entered Factory 4907 | -6/Factory | Evolved 2 slots: Utility x2 5218 | -6/Factory | Build established: Scavenger-Gunner 5852 | -6/Factory | Discovered new exit (range 6) 5862 | -6/Factory | Entered Extension 6071 | -6/Extension | Spotted B-75 Beast 6137 | -6/Extension | Lost 4 parts (1p1n2u) 6159 | -6/Extension | Destroyed B-75 Beast 6194 | -6/Extension | Lost 8 parts (1p3n1u3w) 6341 | -6/Extension | Rescued a captive Derelict 6341 | -6/Extension | Rescued a captive Derelict 6387 | -6/Extension | Rescued a captive Derelict 6464 | -6/Extension | Rescued A7 6561 | -6/Extension | Rescued a captive Derelict 6640 | -6/Extension | Rescued a captive Derelict 6687 | -6/Extension | Rescued a captive Derelict 6716 | -6/Extension | Build established: Scavenger-Mutant 6760 | -6/Extension | Rescued a captive Derelict 6844 | -6/Extension | Energy Cycler disabled 6844 | -6/Extension | Rescued a captive Derelict 6844 | -6/Extension | Rescued a captive Derelict 6845 | -6/Extension | Rescued a captive Derelict 6845 | -6/Extension | Rescued a captive Derelict 6848 | -6/Extension | Rescued a captive Derelict 6851 | -6/Extension | Rescued a captive Derelict 6858 | -6/Extension | Rescued a captive Derelict 6859 | -6/Extension | Rescued a captive Derelict 7160 | -6/Extension | Spotted B-75 Beast 7169 | -6/Extension | Allies destroyed B-75 Beast 7172 | -6/Extension | Discovered new exit (range 14) 7597 | -6/Extension | Build established: Scavenger-Gunner 8037 | -6/Extension | Discovered new exit (range 10) 8039 | -6/Extension | Discovered new exit (range 6) 8182 | -6/Extension | Entered Cetus 8182 | -6/Cetus | Accompanied by 16 allies (A7) 8187 | -6/Cetus | Acquired a Cetus Manufacturing Module code from A7 8209 | -6/Cetus | Build established: Commander-Gunner 8211 | -6/Cetus | Spotted Cetus Guard 8211 | -6/Cetus | Spotted Cetus Guard 8213 | -6/Cetus | Spotted Cetus Guard 8213 | -6/Cetus | Spotted Cetus Guard 8225 | -6/Cetus | Allies destroyed Cetus Guard 8230 | -6/Cetus | Allies destroyed Cetus Guard 8234 | -6/Cetus | Allies destroyed Cetus Guard 8234 | -6/Cetus | Extracted ID and sensor layout for unrecognized location from A7's data core 8236 | -6/Cetus | Allies destroyed Cetus Guard 8339 | -6/Cetus | Discovered new exit (range 16) 8376 | -6/Cetus | Identified exit to Factory 8529 | -6/Cetus | Build established: Scavenger-Gunner 8551 | -6/Cetus | Cetus Manufacturing Module disabled 8627 | -6/Cetus | Lost 4 parts (1p2u1w) 8727 | -6/Cetus | Failed to start Cetus Manufacturing Module 8858 | -6/Cetus | Core integrity fell below 50% 8904 | -6/Cetus | Lost 9 parts (5n2u2w) 8905 | -6/Cetus | Destroyed 7 combat bots 9189 | -6/Cetus | Discovered new exit (range 16) 9216 | -6/Cetus | Identified exit to Archives 9255 | -6/Cetus | Spotted Cetus Guard 9255 | -6/Cetus | Spotted Cetus Guard 9281 | -6/Cetus | Entered Archives 9472 | -6/Archives | Unable to access archive contents 9523 | -6/Archives | Unable to access archive contents 9527 | -6/Archives | Discovered new exit (range 15) 9542 | -6/Archives | Unable to access archive contents 9593 | -6/Archives | Build established: Scavenger-Skirmisher 9597 | -6/Archives | Identified exit to Hub_04(d) 9635 | -6/Archives | Discovered exit to Hub_04(d) (range 15) 9698 | -6/Archives | Unable to access archive contents 9702 | -6/Archives | Discovered exit to Factory (range 15) 9797 | -6/Archives | Entered Hub_04(d) 9867 | -6/Hub_04(d) | Network Hub disabled 9911 | -6/Hub_04(d) | Spotted Lightning 9922 | -6/Hub_04(d) | Spotted Lightning 9923 | -6/Hub_04(d) | Spotted Lightning 9923 | -6/Hub_04(d) | Spotted Lightning 9924 | -6/Hub_04(d) | Spotted Lightning 9927 | -6/Hub_04(d) | Spotted Lightning 9933 | -6/Hub_04(d) | System corruption reached 10% 9933 | -6/Hub_04(d) | Released all parts (12) 9935 | -6/Hub_04(d) | Core integrity fell below 20% 9945 | -6/Hub_04(d) | Destroyed by Y-54 Guardian with Flak Gun Last Messages --------------- 09927_ Carbon-fiber Leg destroyed. 09927_ EMDS Slug penetrates Wall. 09930_ Penetrated by EMDS Slug. 09932_ Ripper destroyed. 09932_ K-01 Serf destroyed. 09933_ Released Adv. Heat Sink. 09933_ Released Imp. Sensor Array. 09933_ Released Rnf. Deuterium Engine. 09933_ Released Flexi-carbon Leg. 09933_ Released Imp. Signal Interpreter. 09933_ Released Hcp. Storage Unit. 09933_ Released Target Analyzer. 09933_ Released Adv. Heat Sink. 09933_ Released Carbon-fiber Leg. 09933_ Released Imp. Treads. 09933_ Released Ripper. 09933_ Released Centrium Medium Armor Plating. 09934_ EMDS Slug penetrates Wall. 09938_ Penetrated by EMDS Slug. 09938_ Control Node disabled. Map ----- +----------------------------------------------------+ | ??????????????????????????????????????? | | ??????????????????????????????????????? | | ??????????????????????????????????????? | | ??????????????????????????????????????? | | ??????????????????????????????????????? | | ??????????????????????????????????????? | | ??????????????????????????????????????? | | ??????????????????????????????????????? | | ????????????????????????????????????? " | | ???????????????????????????????????# " | | ???????????????????????????????????# " | | ???????????????????????????????????# " | | ???????????????????????????????????# " | | ???????????????????????????????????# " | | ???????????????????????????????????# " | | ???????????????????????????????????# " | | ???????????????????????????????????# " | | ???????????????????????????????????# " | | ???????????????????????????????????# " | | ???????????????????????????????????# " | | ???????????????????????????????????# " | | ???????????????????????????????????# | | ????????????#++#?????????????????###### | | ????????????# #?????????????????# # | | ????????????# #?????????????????# | | ????????????# @#?????????????????# | | ????????????# #?????????????????# # | | ???????????## ##????????????????## ## | | ??????###### ##+###????????????# #? | | ??????+ #??####??????# #? | | ??????# Y #? ???????# #? | | ??????## ### ### # " ?????????# #? | | ?????###+####+##### # "??????????# # | | ????# ## + ??????#! " # # | | ????# """ """ ## #???????# + + | | ????# ## ##??????# = # # | | ????# """ " " # ############# # | | ????#= + [[!!]!= #? | | ????# """ """ # "T %][=!**!= #? | | ???? ? # ########+#######? | | ????? """ """ ##+###????? !!!?????? | | ?????" #???????? ?? ???? | | ?????? """ """ / #??????# ???"" """??? | | ???????? #??????#?????? #? | | ??????? #?????????????" """ #? | | ???????###########????????????? #? | | ???????????????????????????????" """ ?? | | ???????????????????????????????? #? | | ?????????????????????????????????"????? | | ??????????????????????????????????????? | +----------------------------------------------------+ Best States ------------- Heat Dissipation 94 Energy Generation 25 Energy Capacity 500 Matter Stores 300 Matter Capacity 300 Sight Range 16 Robot Scan Range 16 Terrain Scan Range 20 Terrain Scan Density 10 Base Temperature (-) 150 Armor Coverage 600 Weapon Cycling 15 Evasion (%) 55 Targeting Accuracy 8 Target Analysis 5 Recoil Reduction 4 Item Schematics ----------------- None Robot Schematics ------------------ None Fabricated ------------ Nothing Alien Tech Used ----------------- None Achievements -------------- Project G-00 Challenges ------------ None Game ------ Seed StorageCryofiberStick Manual? 0 Play Time 01:43:34 Cumulative 50.0 hours Start 2023.09.15 @ 23:02:30 End 2023.09.16 @ 00:50:07 Sessions 1 Manual Loads 0 Difficulty Rogue Special Mode None Game No. 32 Rogue 32 Adventurer 0 Explorer 0 Win Type - Total 0 Types 0/0/0/0/0/0/0/0/0 Lore% 22 Gallery% 39 Achievement% 35 Wizard Run 0 Options --------- ASCII 0 Keyboard 1 Movement Numpad Keybinds 0 Fullscreen 1 Font 24/Smallcaps Map View 76x50 Tactical HUD 1 Map Filters NONE Filters NONE Steam 1 RUN: c408f4ef-922b-43b0-86aa-205a9329a74a